Workbook

Sheet Budget
A1: CALCULATEUR ACHAT-LOCATION-MISE DE FONDS © Dany Provost
A3: Budget total disponible par mois pour te loger | C3: 2000 | Q3: 15 | Y3: =(1+D33)^12-1 -> 0.030225
A4: Prix mensuel de ton loyer actuel | C4: 1200 | G4: =1+C8 -> 1.02 | Q4: =C5+3 -> 8 | T4: =C39 -> 0.05 | V4: =C8 -> 0.02 | Y4: =D33*12 -> 0.0298142007
A5: Durée d'attente avant d'acheter (en années) | C5: 5 | Q5: =Q4+Q3-1 -> 22 | Y5: =Y3/Y4 -> 1.013778646
A6: Tu veux donc acheter en: | C6: =YEAR(TODAY())+Duree -> 2026 | G6: Budget | O6: REER | V6: Maison | W6: Prêt hypothécaire | AA6: Richesse nette
A7: Coût de ta résidence envisagée (incluant les taxes non remboursées, le cas échéant) | C7: 300000 | E7: Année | F7: Proprio | M7: Budget | O7: Solde début | P7: Dépôt | Q7: Remb RAP | R7: Retrait impos | S7: Retrait RAP | T7: Rendement | U7: Solde fin | V7: Valeur fin | W7: Solde début | X7: Versement | Y7: intérêt | Z7: Solde fin | AA7: Fin
A8: Augmentation annuelle de la valeur de ta résidence | C8: 0.02 | G8: Taxes | H8: Prêt | I8: Loyer | J8: Coûts suppl. | K8: Remb RAP | L8: Total | M8: disponible | N8: Écart | P8: déductible | Z8: 0
A9: Taxes foncières annuelles en pourcentage de la valeur | C9: 0.01 | E9: 1 | F9: =E9>$C$5 -> FALSE | G9: =$C$10*$G$4^(E9-1)*F9+($C$31+$C$16*$G$4^(E9-1))*(E9=$C$5+1) -> 0 | H9: =-X9 -> 0 | I9: =$C$4*12*$G$4^(E9-1)*NOT(F9) -> 14400 | J9: =$C$35*12*$G$4^(E9-1)*F9 -> 0 | K9: =Q9 -> 0 | L9: =SUM(G9:K9) -> 14400 | M9: =$C$3*$G$4^(E9-1)*12 -> 24000 | N9: =M9-L9 -> 9600 | O9: =C38 -> 0 | P9: =MAX(0,N9/(1-$C$37)) -> 15267.17557 | Q9: =-SUM($S$9:$S$55)/$Q$3*AND(E9>=$Q$4,E9<=$Q$5) -> 0 | R9: =MIN(0,N9/(1-$C$37)) -> 0 | S9: =-($C$29+$C$31)*(E9=$C$5+1) -> 0 | T9: =(O9+S9)*$T$4+SUM(P9:R9)*$T$4/2 -> 381.6793893 | U9: =SUM(O9:T9) -> 15648.85496 | V9: =$C$7*(1+$V$4)^(E9)*(E9>$C$5) -> 0 | W9: =($C$29/$C$28-$C$29+$C$30)*(E9=$C$5+1)+Z8 -> 0 | X9: =-($C$34*12)*(E9>$C$5)*(E9<=$C$5+$C$18) -> 0 | Y9: =-X9-(W9-Z9) -> 0 | Z9: =W9*(1+$Y$3)+X9*$Y$5 -> 0 | AA9: =U9*(1-$C$37)+V9-Z9+(SUM($Q$9:Q9,$S$9:S9))*$C$37 -> 9840
A10: Taxes annuelles calculées en dollars actuels | C10: =C7*C9 -> 3000 | E10: 2 | F10: =E10>$C$5 -> FALSE | G10: 0 | H10: =-X10 -> 0 | I10: =$C$4*12*$G$4^(E10-1)*NOT(F10) -> 14688 | J10: 0 | K10: =Q10 -> 0 | L10: =SUM(G10:K10) -> 14688 | M10: =$C$3*$G$4^(E10-1)*12 -> 24480 | N10: =M10-L10 -> 9792 | O10: =U9 -> 15648.85496 | P10: 15572.51908 | Q10: 0 | R10: 0 | S10: 0 | T10: =(O10+S10)*$T$4+SUM(P10:R10)*$T$4/2 -> 1171.755725 | U10: =SUM(O10:T10) -> 32393.12977 | V10: =$C$7*(1+$V$4)^(E10)*(E10>$C$5) -> 0 | W10: 0 | X10: 0 | Y10: =-X10-(W10-Z10) -> 0 | Z10: =W10*(1+$Y$3)+X10*$Y$5 -> 0 | AA10: =U10*(1-$C$37)+V10-Z10+(SUM($Q$9:Q10,$S$9:S10))*$C$37 -> 20368.8
A11: Table taxe mutation (taxe de Bienvenue) de ton secteur | E11: 3 | F11: FALSE | G11: 0 | H11: 0 | I11: 14981.76 | J11: 0 | K11: 0 | L11: 14981.76 | M11: 24969.6 | N11: 9987.84 | O11: =U10 -> 32393.12977 | P11: 15883.96947 | Q11: 0 | R11: 0 | S11: 0 | T11: 2016.755725 | U11: 50293.85496 | V11: 0 | W11: 0 | X11: 0 | Y11: 0 | Z11: 0 | AA11: =U11*(1-$C$37)+V11-Z11+(SUM($Q$9:Q11,$S$9:S11))*$C$37 -> 31624.776
B12: 0 | C12: 0.005 | E12: 4 | F12: FALSE | G12: 0 | H12: 0 | I12: 15281.3952 | J12: 0 | K12: 0 | L12: 15281.3952 | M12: 25468.992 | N12: 10187.5968 | O12: 50293.85496 | P12: 16201.64885 | Q12: 0 | R12: 0 | S12: 0 | T12: 2919.733969 | U12: 69415.23779 | V12: 0 | W12: 0 | X12: 0 | Y12: 0 | Z12: 0 | AA12: =U12*(1-$C$37)+V12-Z12+(SUM($Q$9:Q12,$S$9:S12))*$C$37 -> 43648.30152
B13: 50000 | C13: 0.01 | E13: 5 | F13: FALSE | G13: 0 | H13: 0 | I13: 15587.0231 | J13: 0 | K13: 0 | L13: 15587.0231 | M13: 25978.37184 | N13: 10391.34874 | O13: 69415.23779 | P13: 16525.68183 | Q13: 0 | R13: 0 | S13: 0 | T13: 3883.903935 | U13: 89824.82355 | V13: 0 | W13: 0 | X13: 0 | Y13: 0 | Z13: 0 | AA13: =U13*(1-$C$37)+V13-Z13+(SUM($Q$9:Q13,$S$9:S13))*$C$37 -> 56481.84905
B14: 250000 | C14: 0.015 | E14: 6 | F14: TRUE | G14: 7648.712978 | H14: 17512.15257 | I14: 0 | J14: 1987.345446 | K14: 0 | L14: 27148.21099 | M14: 26497.93928 | N14: -650.2717171 | O14: 89824.82355 | P14: 0 | Q14: 0 | R14: -1034.147133 | S14: -34146.65226 | T14: 2758.054887 | U14: 57402.07905 | V14: 337848.7258 | W14: 308369.7683 | X14: -17512.15257 | Y14: 9079.182505 | Z14: 299936.7983 | AA14: =U14*(1-$C$37)+V14-Z14+(SUM($Q$9:Q14,$S$9:S14))*$C$37 -> 61331.1175
B15: 500000 | C15: 0.02 | E15: 7 | F15: TRUE | G15: 3378.487258 | H15: 17512.15257 | I15: 0 | J15: 2027.092355 | K15: 0 | L15: 22917.73218 | M15: 27027.89806 | N15: 4110.16588 | O15: 57402.07905 | P15: 6536.523346 | Q15: 0 | R15: 0 | S15: 0 | T15: 3033.517036 | U15: 66972.11943 | V15: 344605.7003 | W15: 299936.7983 | X15: -17512.15257 | Y15: 8824.295984 | Z15: 291248.9417 | AA15: =U15*(1-$C$37)+V15-Z15+(SUM($Q$9:Q15,$S$9:S15))*$C$37 -> 82793.59
A16: La taxe de mutation, en dollars d'aujourd'hui, est donc de: | C16: =MIN(C7,B13)*C12+MAX(0,MIN(C7-B13,B14-B13))*C13+MAX(0,MIN(C7-B14,B15-B14))*C14+MAX(0,C7-B15)*C15 -> 3000 | E16: 8 | F16: TRUE | G16: 3446.057003 | H16: 17512.15257 | I16: 0 | J16: 2067.634202 | K16: 2276.443484 | L16: 25302.28726 | M16: 27568.45602 | N16: 2266.168765 | O16: 66972.11943 | P16: 3603.95796 | Q16: 2276.443484 | R16: 0 | S16: 0 | T16: 3495.616008 | U16: 76348.13689 | V16: 351497.8143 | W16: 291248.9417 | X16: -17512.15257 | Y16: 8561.705519 | Z16: 282298.4946 | AA16: =U16*(1-$C$37)+V16-Z16+(SUM($Q$9:Q16,$S$9:S16))*$C$37 -> 105376.8066
A17: Taux intérêt de ton futur prêt hypothécaire | C17: 0.03 | E17: 9 | F17: TRUE | G17: 3514.978143 | H17: 17512.15257 | I17: 0 | J17: 2108.986886 | K17: 2276.443484 | L17: 25412.56108 | M17: 28119.82514 | N17: 2707.264062 | O17: 76348.13689 | P17: 4305.445391 | Q17: 2276.443484 | R17: 0 | S17: 0 | T17: 3981.954066 | U17: 86911.97983 | V17: 358527.7706 | W17: 282298.4946 | X17: -17512.15257 | Y17: 8291.178257 | Z17: 273077.5203 | AA17: =U17*(1-$C$37)+V17-Z17+(SUM($Q$9:Q17,$S$9:S17))*$C$37 -> 129115.2975
A18: Durée d'amortissement de ton prêt (en années) | C18: 25 | D18: =((1+$T$4)^C5-1)/T4 -> 5.52563125 | E18: 10 | F18: TRUE | G18: 3585.277706 | H18: 17512.15257 | I18: 0 | J18: 2151.166624 | K18: 2276.443484 | L18: 25525.04038 | M18: 28682.22165 | N18: 3157.181264 | O18: 86911.97983 | P18: 5020.96257 | Q18: 2276.443484 | R18: 0 | S18: 0 | T18: 4528.034143 | U18: 98737.42002 | V18: 365698.326 | W18: 273077.5203 | X18: -17512.15257 | Y18: 8012.474308 | Z18: 263577.8421 | AA18: =U18*(1-$C$37)+V18-Z18+(SUM($Q$9:Q18,$S$9:S18))*$C$37 -> 154066.3838
E19: 11 | F19: TRUE | G19: 3656.98326 | H19: 17512.15257 | I19: 0 | J19: 2194.189956 | K19: 2276.443484 | L19: 25639.76927 | M19: 29255.86608 | N19: 3616.09681 | O19: 98737.42002 | P19: 5750.790093 | Q19: 2276.443484 | R19: 0 | S19: 0 | T19: 5137.551841 | U19: 111902.2054 | V19: 373012.2925 | W19: 263577.8421 | X19: -17512.15257 | Y19: 7725.346533 | Z19: 253791.036 | AA19: =U19*(1-$C$37)+V19-Z19+(SUM($Q$9:Q19,$S$9:S19))*$C$37 -> 180290.1892
A20: Taxe de vente (si tu achètes une résidence neuve) | C20: 0.09975 | E20: 12 | F20: TRUE | G20: 3730.122925 | H20: 17512.15257 | I20: 0 | J20: 2238.073755 | K20: 2276.443484 | L20: 25756.79273 | M20: 29840.9834 | N20: 4084.190668 | O20: 111902.2054 | P20: 6495.214166 | Q20: 2276.443484 | R20: 0 | S20: 0 | T20: 5814.401713 | U20: 126488.2648 | V20: 380472.5384 | W20: 253791.036 | X20: -17512.15257 | Y20: 7429.54032 | Z20: 243708.4238 | AA20: =U20*(1-$C$37)+V20-Z20+(SUM($Q$9:Q20,$S$9:S20))*$C$37 -> 207849.7773
E21: 13 | F21: TRUE | G21: 3804.725384 | H21: 17512.15257 | I21: 0 | J21: 2282.83523 | K21: 2276.443484 | L21: 25876.15667 | M21: 30437.80307 | N21: 4561.646402 | O21: 126488.2648 | P21: 7254.526721 | Q21: 2276.443484 | R21: 0 | S21: 0 | T21: 6562.687495 | U21: 142581.9225 | V21: 388081.9891 | W21: 243708.4238 | X21: -17512.15257 | Y21: 7124.793365 | Z21: 233321.0646 | AA21: =U21*(1-$C$37)+V21-Z21+(SUM($Q$9:Q21,$S$9:S21))*$C$37 -> 236811.295
A22: Table SCHL (va voir si elle est à jour en cliquant ici) | B22: 0 | C22: 0 | E22: 14 | F22: TRUE | G22: 3880.819891 | H22: 17512.15257 | I22: 0 | J22: 2328.491935 | K22: 2276.443484 | L22: 25997.90788 | M22: 31046.55913 | N22: 5048.651251 | O22: 142581.9225 | P22: 8029.025527 | Q22: 2276.443484 | R22: 0 | S22: 0 | T22: 7386.73285 | U22: 160274.1244 | V22: 395843.6289 | W22: 233321.0646 | X22: -17512.15257 | Y22: 6810.835433 | Z22: 222619.7474 | AA22: =U22*(1-$C$37)+V22-Z22+(SUM($Q$9:Q22,$S$9:S22))*$C$37 -> 267244.1243
B23: 0.85 | C23: 0.028 | E23: 15 | F23: TRUE | G23: 3958.436289 | H23: 17512.15257 | I23: 0 | J23: 2375.061774 | K23: 2276.443484 | L23: 26122.09412 | M23: 31667.49031 | N23: 5545.396197 | O23: 160274.1244 | P23: 8819.014309 | Q23: 2276.443484 | R23: 0 | S23: 0 | T23: 8291.092663 | U23: 179660.6748 | V23: 403760.5015 | W23: 222619.7474 | X23: -17512.15257 | Y23: 6487.388123 | Z23: 211594.983 | AA23: =U23*(1-$C$37)+V23-Z23+(SUM($Q$9:Q23,$S$9:S23))*$C$37 -> 299221.0401
B24: 0.9 | C24: 0.031 | E24: 16 | F24: TRUE | G24: 4037.605015 | H24: 17512.15257 | I24: 0 | J24: 2422.563009 | K24: 2276.443484 | L24: 26248.76408 | M24: 32300.84012 | N24: 6052.076042 | O24: 179660.6748 | P24: 9624.802866 | Q24: 2276.443484 | R24: 0 | S24: 0 | T24: 9280.5649 | U24: 200842.4861 | V24: 411835.7115 | W24: 211594.983 | X24: -17512.15257 | Y24: 6154.164617 | Z24: 200236.995 | AA24: =U24*(1-$C$37)+V24-Z24+(SUM($Q$9:Q24,$S$9:S24))*$C$37 -> 332818.3768
B25: 0.95 | C25: 0.04 | E25: 17 | F25: TRUE | G25: 4118.357115 | H25: 17512.15257 | I25: 0 | J25: 2471.014269 | K25: 2276.443484 | L25: 26377.96744 | M25: 32946.85692 | N25: 6568.889484 | O25: 200842.4861 | P25: 10446.7072 | Q25: 2276.443484 | R25: 0 | S25: 0 | T25: 10360.20307 | U25: 223925.8398 | V25: 420072.4258 | W25: 200236.995 | X25: -17512.15257 | Y25: 5810.869431 | Z25: 188535.7119 | AA25: =U25*(1-$C$37)+V25-Z25+(SUM($Q$9:Q25,$S$9:S25))*$C$37 -> 368116.2028
E26: 18 | F26: TRUE | G26: 4200.724258 | H26: 17512.15257 | I26: 0 | J26: 2520.434555 | K26: 2276.443484 | L26: 26509.75487 | M26: 33605.79406 | N26: 7096.039195 | O26: 223925.8398 | P26: 11285.04961 | Q26: 2276.443484 | R26: 0 | S26: 0 | T26: 11535.32932 | U26: 249022.6622 | V26: 428473.8743 | W26: 188535.7119 | X26: -17512.15257 | Y26: 5457.198149 | Z26: 176480.7575 | AA26: =U26*(1-$C$37)+V26-Z26+(SUM($Q$9:Q26,$S$9:S26))*$C$37 -> 405198.5035
A27: ="Ta mise de fonds possible en RAP selon le solde prévu de ton REER en "&YEAR(TODAY())+Duree&" (" &TEXT(C46,"### ### ##0")&" $)" -> Ta mise de fonds possible en RAP selon le solde prévu de ton REER en 2026 (84 361 $) | C27: =IF(C46<C47,A47,INDEX(A47:A50,MATCH(C46,C47:C50))) -> 0.2 | E27: 19 | F27: TRUE | G27: 4284.738743 | H27: 17512.15257 | I27: 0 | J27: 2570.843246 | K27: 2276.443484 | L27: 26644.17804 | M27: 34277.90994 | N27: 7633.7319 | O27: 249022.6622 | P27: 12140.15887 | Q27: 2276.443484 | R27: 0 | S27: 0 | T27: 12811.54817 | U27: 276250.8128 | V27: 437043.3518 | W27: 176480.7575 | X27: -17512.15257 | Y27: 5092.837151 | Z27: 164061.4421 | AA27: =U27*(1-$C$37)+V27-Z27+(SUM($Q$9:Q27,$S$9:S27))*$C$37 -> 444153.3733
A28: La mise de fonds que tu veux réellement faire (en pourcentage) | C28: 0.1 | E28: 20 | F28: TRUE | G28: 4370.433518 | H28: 17512.15257 | I28: 0 | J28: 2622.260111 | K28: 2276.443484 | L28: 26781.28968 | M28: 34963.46814 | N28: 8182.178459 | O28: 276250.8128 | P28: 13012.37032 | Q28: 2276.443484 | R28: 0 | S28: 0 | T28: 14194.76098 | U28: 305734.3875 | V28: 445784.2188 | W28: 164061.4421 | X28: -17512.15257 | Y28: 4717.463343 | Z28: 151266.7528 | AA28: =U28*(1-$C$37)+V28-Z28+(SUM($Q$9:Q28,$S$9:S28))*$C$37 -> 485073.2172
A29: ="Ta mise de fonds calculée en dollars de "&YEAR(TODAY())+Duree -> Ta mise de fonds calculée en dollars de 2026 | C29: =C7*C28*(1+C8)^C5 -> 33122.4241 | E29: 21 | F29: TRUE | G29: 4457.842188 | H29: 17512.15257 | I29: 0 | J29: 2674.705313 | K29: 2276.443484 | L29: 26921.14355 | M29: 35662.7375 | N29: 8741.593949 | O29: 305734.3875 | P29: 13902.026 | Q29: 2276.443484 | R29: 0 | S29: 0 | T29: 15691.18111 | U29: 337604.0381 | V29: 454699.9032 | W29: 151266.7528 | X29: -17512.15257 | Y29: 4330.743861 | Z29: 138085.3441 | AA29: =U29*(1-$C$37)+V29-Z29+(SUM($Q$9:Q29,$S$9:S29))*$C$37 -> 528054.9624
A30: ="Ta prime SCHL prévue en dollars de "&YEAR(TODAY())+Duree -> Ta prime SCHL prévue en dollars de 2026 | C30: =INDEX(C22:C25,MATCH((1-C28),B22:B25,1))*C7*(1+C8)^C5 -> 10267.95147 | E30: 22 | F30: TRUE | G30: 4546.999032 | H30: 17512.15257 | I30: 0 | J30: 2728.199419 | K30: 2276.443484 | L30: 27063.7945 | M30: 36375.99225 | N30: 9312.197749 | O30: 337604.0381 | P30: 14809.47479 | Q30: 2276.443484 | R30: 0 | S30: 0 | T30: 17307.34986 | U30: 371997.3063 | V30: 463793.9012 | W30: 138085.3441 | X30: -17512.15257 | Y30: 3932.335783 | Z30: 124505.5273 | AA30: =U30*(1-$C$37)+V30-Z30+(SUM($Q$9:Q30,$S$9:S30))*$C$37 -> 573200.2801
A31: ="La taxe sur ta prime SCHL en dollars de "&YEAR(TODAY())+Duree -> La taxe sur ta prime SCHL en dollars de 2026 | C31: =C30*C20 -> 1024.228159 | E31: 23 | F31: TRUE | G31: 4637.939012 | H31: 17512.15257 | I31: 0 | J31: 2782.763407 | K31: 0 | L31: 24932.85499 | M31: 37103.5121 | N31: 12170.65711 | O31: 371997.3063 | P31: 19355.37072 | Q31: 0 | R31: 0 | S31: 0 | T31: 19083.74958 | U31: 410436.4266 | V31: 473069.7793 | W31: 124505.5273 | X31: -17512.15257 | Y31: 3521.88582 | Z31: 110515.2606 | AA31: =U31*(1-$C$37)+V31-Z31+(SUM($Q$9:Q31,$S$9:S31))*$C$37 -> 620636.9437
E32: 24 | F32: TRUE | G32: 4730.697793 | H32: 17512.15257 | I32: 0 | J32: 2838.418676 | K32: 0 | L32: 25081.26904 | M32: 37845.58234 | N32: 12764.3133 | O32: 410436.4266 | P32: 20299.48044 | Q32: 0 | R32: 0 | S32: 0 | T32: 21029.30834 | U32: 451765.2154 | V32: 482531.1748 | W32: 110515.2606 | X32: -17512.15257 | Y32: 3099.030008 | Z32: 96102.13802 | AA32: =U32*(1-$C$37)+V32-Z32+(SUM($Q$9:Q32,$S$9:S32))*$C$37 -> 670499.0043
D33: =(1+C17/2)^(1/6) -1 -> 0.002484516725 | E33: 25 | F33: TRUE | G33: 4825.311748 | H33: 17512.15257 | I33: 0 | J33: 2895.187049 | K33: 0 | L33: 25232.65137 | M33: 38602.49399 | N33: 13369.84262 | O33: 451765.2154 | P33: 21262.47236 | Q33: 0 | R33: 0 | S33: 0 | T33: 23119.82258 | U33: 496147.5103 | V33: 492181.7983 | W33: 96102.13802 | X33: -17512.15257 | Y33: 2663.393378 | Z33: 81253.37882 | AA33: =U33*(1-$C$37)+V33-Z33+(SUM($Q$9:Q33,$S$9:S33))*$C$37 -> 722905.974
A34: ="Versements mensuels sur ton prêt hypothécaire"&IF(C30>0,", incluant la prime SCHL","") -> Versements mensuels sur ton prêt hypothécaire, incluant la prime SCHL | C34: =(C7*(1+C8)^(C5)-C29+C30)/D34 -> 1459.346047 | D34: =(1-(1+D33)^-(12*C18))/D33 -> 211.3068171 | E34: 26 | F34: TRUE | G34: 4921.817983 | H34: 17512.15257 | I34: 0 | J34: 2953.09079 | K34: 0 | L34: 25387.06134 | M34: 39374.54387 | N34: 13987.48252 | O34: 496147.5103 | P34: 22244.72412 | Q34: 0 | R34: 0 | S34: 0 | T34: 25363.49362 | U34: 543755.728 | V34: 502025.4343 | W34: 81253.37882 | X34: -17512.15257 | Y34: 2214.589632 | Z34: 65955.81589 | AA34: =U34*(1-$C$37)+V34-Z34+(SUM($Q$9:Q34,$S$9:S34))*$C$37 -> 777983.2202
A35: Coût additionnels en coûts divers (électricité…) lorsque tu seras propriétaire | C35: 150 | E35: 27 | F35: TRUE | G35: 5020.254343 | H35: 17512.15257 | I35: 0 | J35: 3012.152606 | K35: 0 | L35: 25544.55952 | M35: 40162.03474 | N35: 14617.47523 | O35: 543755.728 | P35: 23246.62091 | Q35: 0 | R35: 0 | S35: 0 | T35: 27768.95192 | U35: 594771.3009 | V35: 512065.943 | W35: 65955.81589 | X35: -17512.15257 | Y35: 1752.220792 | Z35: 50195.88411 | AA35: =U35*(1-$C$37)+V35-Z35+(SUM($Q$9:Q35,$S$9:S35))*$C$37 -> 835862.2529
E36: 28 | F36: TRUE | G36: 5120.65943 | H36: 17512.15257 | I36: 0 | J36: 3072.395658 | K36: 0 | L36: 25705.20766 | M36: 40965.27544 | N36: 15260.06778 | O36: 594771.3009 | P36: 24268.55563 | Q36: 0 | R36: 0 | S36: 0 | T36: 30345.27893 | U36: 649385.1354 | V36: 522307.2619 | W36: 50195.88411 | X36: -17512.15257 | Y36: 1275.876854 | Z36: 33959.60839 | AA36: =U36*(1-$C$37)+V36-Z36+(SUM($Q$9:Q36,$S$9:S36))*$C$37 -> 896681.0266
A37: Ton taux d'impôt pour tes cotisations et retraits au REER | C37: 0.3712 | E37: 29 | F37: TRUE | G37: 5223.072619 | H37: 17512.15257 | I37: 0 | J37: 3133.843571 | K37: 0 | L37: 25869.06876 | M37: 41784.58095 | N37: 15915.51219 | O37: 649385.1354 | P37: 25310.92905 | Q37: 0 | R37: 0 | S37: 0 | T37: 33102.03 | U37: 707798.0945 | V37: 532753.4071 | W37: 33959.60839 | X37: -17512.15257 | Y37: 785.1354203 | Z37: 17232.59124 | AA37: =U37*(1-$C$37)+V37-Z37+(SUM($Q$9:Q37,$S$9:S37))*$C$37 -> 960584.2577
A38: Ton solde REER aujourd'hui | C38: 0 | E38: 30 | F38: TRUE | G38: 5327.534071 | H38: 17512.15257 | I38: 0 | J38: 3196.520443 | K38: 0 | L38: 26036.20708 | M38: 42620.27257 | N38: 16584.06548 | O38: 707798.0945 | P38: 26374.14994 | Q38: 0 | R38: 0 | S38: 0 | T38: 36049.25847 | U38: 770221.5029 | V38: 543408.4752 | W38: 17232.59124 | X38: -17512.15257 | Y38: 279.561327 | Z38: 2.062733984e-09 | AA38: =U38*(1-$C$37)+V38-Z38+(SUM($Q$9:Q38,$S$9:S38))*$C$37 -> 1027723.756
A39: Le taux de rendement annuel de ton REER | C39: 0.05 | E39: 31 | F39: TRUE | G39: 5434.084752 | H39: 0 | I39: 0 | J39: 3260.450851 | K39: 0 | L39: 8694.535604 | M39: 43472.67802 | N39: 34778.14241 | O39: 770221.5029 | P39: 55308.75066 | Q39: 0 | R39: 0 | S39: 0 | T39: 39893.79391 | U39: 865424.0475 | V39: 554276.6447 | W39: 2.062733984e-09 | X39: 0 | Y39: 6.234613465e-11 | Z39: 2.125080118e-09 | AA39: =U39*(1-$C$37)+V39-Z39+(SUM($Q$9:Q39,$S$9:S39))*$C$37 -> 1098455.286
A40: Nombre années que tu prendras pour rembourser ton RAP (normalement 15) | C40: 15 | E40: 32 | F40: TRUE | G40: 5542.766447 | H40: 0 | I40: 0 | J40: 3325.659868 | K40: 0 | L40: 8868.426316 | M40: 44342.13158 | N40: 35473.70526 | O40: 865424.0475 | P40: 56414.92567 | Q40: 0 | R40: 0 | S40: 0 | T40: 44681.57552 | U40: 966520.5487 | V40: 565362.1776 | W40: 2.125080118e-09 | X40: 0 | Y40: 6.423054657e-11 | Z40: 2.189310665e-09 | AA40: =U40*(1-$C$37)+V40-Z40+(SUM($Q$9:Q40,$S$9:S40))*$C$37 -> 1173110.299
E41: 33 | F41: TRUE | G41: =$C$10*$G$4^(E41-1)*F41+($C$31+$C$16*$G$4^(E41-1))*(E41=$C$5+1) -> 5653.621776 | H41: 0 | I41: 0 | J41: =$C$35*12*$G$4^(E41-1)*F41 -> 3392.173066 | K41: 0 | L41: 9045.794842 | M41: 45228.97421 | N41: 36183.17937 | O41: 966520.5487 | P41: =MAX(0,N41/(1-$C$37)) -> 57543.22419 | Q41: 0 | R41: =MIN(0,N41/(1-$C$37)) -> 0 | S41: =-($C$29+$C$31)*(E41=$C$5+1) -> 0 | T41: 49764.60804 | U41: 1073828.381 | V41: 576669.4212 | W41: =($C$29/$C$28-$C$29+$C$30)*(E41=$C$5+1)+Z40 -> 2.189310665e-09 | X41: =-($C$34*12)*(E41>$C$5)*(E41<=$C$5+$C$18) -> 0 | Y41: 6.617191485e-11 | Z41: 2.25548258e-09 | AA41: =U41*(1-$C$37)+V41-Z41+(SUM($Q$9:Q41,$S$9:S41))*$C$37 -> 1251892.707
A42: Année où tu veux calculer ta richette nette | C42: 8 | E42: 34 | F42: TRUE | G42: 5766.694212 | H42: 0 | I42: 0 | J42: 3460.016527 | K42: 0 | L42: 9226.710739 | M42: 46133.55369 | N42: 36906.84296 | O42: 1073828.381 | P42: 58694.08867 | Q42: 0 | R42: 0 | S42: 0 | T42: 55158.77126 | U42: 1187681.241 | V42: 588202.8096 | W42: 2.25548258e-09 | X42: 0 | Y42: 6.817196097e-11 | Z42: 2.323654541e-09 | AA42: =U42*(1-$C$37)+V42-Z42+(SUM($Q$9:Q42,$S$9:S42))*$C$37 -> 1335016.774
A43: ="Ta richesse nette dans "&C42&" ans" -> Ta richesse nette dans 8 ans | C43: =INDEX(AA9:AA58,C42) -> 105376.8066 | E43: 35 | F43: TRUE | G43: 5882.028096 | H43: 0 | I43: 0 | J43: 3529.216858 | K43: 0 | L43: 9411.244954 | M43: 47056.22477 | N43: 37644.97981 | O43: =U42 -> 1187681.241 | P43: 59867.97044 | Q43: =-SUM($S$9:$S$55)/$Q$3*AND(E43>=$Q$4,E43<=$Q$5) -> 0 | R43: 0 | S43: 0 | T43: 60880.7613 | U43: 1308429.973 | V43: 599966.8658 | W43: 2.323654541e-09 | X43: 0 | Y43: =-X43-(W43-Z43) -> 7.023245849e-11 | Z43: =W43*(1+$Y$3)+X43*$Y$5 -> 2.393886999e-09 | AA43: =U43*(1-$C$37)+V43-Z43+(SUM($Q$9:Q43,$S$9:S43))*$C$37 -> 1422707.633
E44: 36 | F44: TRUE | G44: 5999.668658 | H44: 0 | I44: 0 | J44: 3599.801195 | K44: 0 | L44: 9599.469853 | M44: 47997.34926 | N44: 38397.87941 | O44: 1308429.973 | P44: 61065.32985 | Q44: 0 | R44: 0 | S44: 0 | T44: 66948.13188 | U44: 1436443.434 | V44: 611966.2031 | W44: 2.393886999e-09 | X44: 0 | Y44: 7.235523455e-11 | Z44: 2.466242234e-09 | AA44: =U44*(1-$C$37)+V44-Z44+(SUM($Q$9:Q44,$S$9:S44))*$C$37 -> 1515201.835
A45: Estimation de la mise de fonds | E45: 37 | F45: TRUE | G45: 6119.662031 | H45: 0 | I45: 0 | J45: 3671.797219 | K45: 0 | L45: 9791.45925 | M45: 48957.29625 | N45: 39165.837 | O45: 1436443.434 | P45: 62286.63645 | Q45: 0 | R45: 0 | S45: 0 | T45: 73379.33763 | U45: 1572109.408 | V45: 624205.5272 | W45: 2.466242234e-09 | X45: 0 | Y45: 7.454217151e-11 | Z45: 2.540784405e-09 | AA45: =U45*(1-$C$37)+V45-Z45+(SUM($Q$9:Q45,$S$9:S45))*$C$37 -> 1612747.923
A46: Solde REER disponible estimé | C46: =C38*(1+$C$39)^(C5+1)+12*(C3-C4)/(1-C37)*D18 -> 84360.78244 | E46: 38 | F46: TRUE | G46: 6242.055272 | H46: 0 | I46: 0 | J46: 3745.233163 | K46: 0 | L46: 9987.288435 | M46: 49936.44217 | N46: 39949.15374 | O46: 1572109.408 | P46: 63532.36918 | Q46: 0 | R46: 0 | S46: 0 | T46: 80193.77965 | U46: 1715835.557 | V46: 636689.6377 | W46: 2.540784405e-09 | X46: 0 | Y46: 7.679520865e-11 | Z46: 2.617579614e-09 | AA46: =U46*(1-$C$37)+V46-Z46+(SUM($Q$9:Q46,$S$9:S46))*$C$37 -> 1715607.036
A47: 0.05 | C47: =$C$7*A47*(1+$C$8)^$C$5 -> 16561.21205 | E47: 39 | F47: TRUE | G47: 6366.896377 | H47: 0 | I47: 0 | J47: 3820.137826 | K47: 0 | L47: 10187.0342 | M47: 50935.17102 | N47: 40748.13681 | O47: 1715835.557 | P47: 64803.01656 | Q47: 0 | R47: 0 | S47: 0 | T47: 87411.85327 | U47: 1868050.427 | V47: 649423.4305 | W47: 2.617579614e-09 | X47: 0 | Y47: 7.911634383e-11 | Z47: 2.696695958e-09 | AA47: =U47*(1-$C$37)+V47-Z47+(SUM($Q$9:Q47,$S$9:S47))*$C$37 -> 1824053.539
A48: 0.1 | C48: =C47*2 -> 33122.4241 | E48: 40 | F48: TRUE | G48: 6494.234305 | H48: 0 | I48: 0 | J48: 3896.540583 | K48: 0 | L48: 10390.77489 | M48: 51953.87444 | N48: 41563.09955 | O48: 1868050.427 | P48: 66099.07689 | Q48: 0 | R48: 0 | S48: 0 | T48: 95054.99827 | U48: 2029204.502 | V48: 662411.8991 | W48: 2.696695958e-09 | X48: 0 | Y48: 8.150763532e-11 | Z48: 2.778203593e-09 | AA48: =U48*(1-$C$37)+V48-Z48+(SUM($Q$9:Q48,$S$9:S48))*$C$37 -> 1938375.69
A49: 0.15 | C49: =C47*3 -> 49683.63614 | E49: 41 | F49: TRUE | G49: 6624.118991 | H49: 0 | I49: 0 | J49: 3974.471395 | K49: 0 | L49: 10598.59039 | M49: 52992.95193 | N49: 42394.36154 | O49: 2029204.502 | P49: 67421.05843 | Q49: 0 | R49: 0 | S49: 0 | T49: 103145.7516 | U49: 2199771.312 | V49: 675660.1371 | W49: 2.778203593e-09 | X49: 0 | Y49: 8.39712036e-11 | Z49: 2.862174797e-09 | AA49: =U49*(1-$C$37)+V49-Z49+(SUM($Q$9:Q49,$S$9:S49))*$C$37 -> 2058876.338
A50: 0.2 | C50: =C47*4 -> 66244.84819 | E50: 42 | F50: TRUE | G50: 6756.601371 | H50: 0 | I50: 0 | J50: 4053.960822 | K50: 0 | L50: 10810.56219 | M50: 54052.81097 | N50: 43242.24877 | O50: 2199771.312 | P50: 68769.4796 | Q50: 0 | R50: 0 | S50: 0 | T50: 111707.8026 | U50: 2380248.594 | V50: 689173.3398 | W50: 2.862174797e-09 | X50: 0 | Y50: 8.650923323e-11 | Z50: 2.94868403e-09 | AA50: =U50*(1-$C$37)+V50-Z50+(SUM($Q$9:Q50,$S$9:S50))*$C$37 -> 2185873.656
E51: 43 | F51: TRUE | G51: 6891.733398 | H51: 0 | I51: 0 | J51: 4135.040039 | K51: 0 | L51: 11026.77344 | M51: 55133.86718 | N51: 44107.09375 | O51: 2380248.594 | P51: 70144.86919 | Q51: 0 | R51: 0 | S51: 0 | T51: 120766.0515 | U51: 2571159.515 | V51: 702956.8066 | W51: 2.94868403e-09 | X51: 0 | Y51: 8.91239748e-11 | Z51: 3.037808005e-09 | AA51: =U51*(1-$C$37)+V51-Z51+(SUM($Q$9:Q51,$S$9:S51))*$C$37 -> 2319701.91
E52: 44 | F52: TRUE | G52: 7029.568066 | H52: 0 | I52: 0 | J52: 4217.74084 | K52: 0 | L52: 11247.30891 | M52: 56236.54453 | N52: 44989.23562 | O52: 2571159.515 | P52: 71547.76658 | Q52: 0 | R52: 0 | S52: 0 | T52: 130346.6699 | U52: 2773053.952 | V52: 717015.9427 | W52: 3.037808005e-09 | X52: 0 | Y52: 9.181774694e-11 | Z52: 3.129625752e-09 | AA52: =U52*(1-$C$37)+V52-Z52+(SUM($Q$9:Q52,$S$9:S52))*$C$37 -> 2460712.267
E53: 45 | F53: TRUE | G53: 7170.159427 | H53: 0 | I53: 0 | J53: 4302.095656 | K53: 0 | L53: 11472.25508 | M53: 57361.27542 | N53: 45889.02034 | O53: 2773053.952 | P53: 72978.72191 | Q53: 0 | R53: 0 | S53: 0 | T53: 140477.1656 | U53: 2986509.839 | V53: 731356.2616 | W53: 3.129625752e-09 | X53: 0 | Y53: 9.459293834e-11 | Z53: 3.22421869e-09 | AA53: =U53*(1-$C$37)+V53-Z53+(SUM($Q$9:Q53,$S$9:S53))*$C$37 -> 2609273.648
E54: 46 | F54: TRUE | G54: 7313.562616 | H54: 0 | I54: 0 | J54: 4388.13757 | K54: 0 | L54: 11701.70019 | M54: 58508.50093 | N54: 46806.80074 | O54: 2986509.839 | P54: 74438.29635 | Q54: 0 | R54: 0 | S54: 0 | T54: 151186.4494 | U54: 3212134.585 | V54: 745983.3868 | W54: 3.22421869e-09 | X54: 0 | Y54: 9.74520099e-11 | Z54: 3.3216707e-09 | AA54: =U54*(1-$C$37)+V54-Z54+(SUM($Q$9:Q54,$S$9:S54))*$C$37 -> 2765773.614
E55: 47 | F55: TRUE | G55: 7459.833868 | H55: 0 | I55: 0 | J55: 4475.900321 | K55: 0 | L55: 11935.73419 | M55: 59678.67095 | N55: 47742.93676 | O55: 3212134.585 | P55: 75927.06227 | Q55: 0 | R55: 0 | S55: 0 | T55: 162504.9058 | U55: 3450566.553 | V55: 760903.0546 | W55: 3.3216707e-09 | X55: 0 | Y55: 1.003974969e-10 | Z55: 3.422068197e-09 | AA55: =U55*(1-$C$37)+V55-Z55+(SUM($Q$9:Q55,$S$9:S55))*$C$37 -> 2930619.303
E56: 48 | F56: TRUE | G56: 7609.030546 | H56: 0 | I56: 0 | J56: 4565.418327 | K56: 0 | L56: 12174.44887 | M56: 60872.24436 | N56: 48697.79549 | O56: 3450566.553 | P56: 77445.60352 | Q56: 0 | R56: 0 | S56: 0 | T56: 174464.4677 | U56: 3702476.624 | V56: 776121.1156 | W56: 3.422068197e-09 | X56: 0 | Y56: 1.034320112e-10 | Z56: 3.525500208e-09 | AA56: =U56*(1-$C$37)+V56-Z56+(SUM($Q$9:Q56,$S$9:S56))*$C$37 -> 3104238.417
E57: 49 | F57: TRUE | G57: 7761.211156 | H57: 0 | I57: 0 | J57: 4656.726694 | K57: 0 | L57: 12417.93785 | M57: 62089.68925 | N57: 49671.7514 | O57: 3702476.624 | P57: 78994.51559 | Q57: 0 | R57: 0 | S57: 0 | T57: 187098.6941 | U57: 3968569.834 | V57: 791643.538 | W57: 3.525500208e-09 | X57: 0 | Y57: 1.065582438e-10 | Z57: 3.632058452e-09 | AA57: =U57*(1-$C$37)+V57-Z57+(SUM($Q$9:Q57,$S$9:S57))*$C$37 -> 3287080.249
E58: 50 | F58: TRUE | G58: 7916.43538 | H58: 0 | I58: 0 | J58: 4749.861228 | K58: 0 | L58: 12666.29661 | M58: 63331.48304 | N58: 50665.18643 | O58: 3968569.834 | P58: 80574.4059 | Q58: =-SUM($S$9:$S$55)/$Q$3*AND(E58>=$Q$4,E58<=$Q$5) -> 0 | R58: 0 | S58: 0 | T58: 200442.8518 | U58: 4249587.092 | V58: 807476.4087 | W58: 3.632058452e-09 | X58: 0 | Y58: 1.097789667e-10 | Z58: 3.741837418e-09 | AA58: =U58*(1-$C$37)+V58-Z58+(SUM($Q$9:Q58,$S$9:S58))*$C$37 -> 3479616.772
